[Event "SixDays Budapest March IM B 2025"]
[Site "Budapest"]
[Date "2025.03.27"]
[Round "6.3"]
[White "Suder, Jakub"]
[Black "Kolimar, Kristof Pal"]
[Result "1/2-1/2"]
[Annotator "TA"]
[ECO "D35"]
[WhiteElo "2347"]
[BlackElo "2284"]
[PlyCount "74"]
[EventDate "2025.03.23"]
[EventType "tourn"]
[EventCountry "HUN"]
[SourceTitle "playchess.com"]
[Source "ChessBase"]
[SourceQuality "1"]
[TimeControl "5400+30"]

{[%evp 16,74,24,-4,26,26,62,40,32,31,40,33,48,44,43,49,105,23,54,19,17,22,30,26,64,46,50,27,43,15,28,7,16,18,13,29,23,11,26,0,0,-60,-57,-79,-13,-31,-31,-16,-29,-25,-16,-16,-17,-19,0,0,0,0,10,0,0]} 1. c4 {[%emt 0:00:03]} e6 {[%emt 0:00:10]} 2. Nc3 {[%emt 0:00:06]} d5 {[%emt 0:00:05]} 3. d4 {[%emt 0:00:04]} Nf6 {[%emt 0:00:18]} 4. cxd5 {[%emt 0:00:06]} exd5 {[%emt 0:00:05]} 5. Bg5 {[%emt 0:00:07][%cal Bc1g5,Bg5h4,Bh4g3][%mdl 32]} c6 {[%emt 0:00:05]} 6. e3 {[%emt 0:00:04]} h6 {[%emt 0:00:05]} 7. Bh4 {[%emt 0:00:05]} Be7 {[%emt 0:00:04]} 8. Bd3 {[%emt 0:00:09]} O-O {[%emt 0:00:04]} 9. Qc2 {[%emt 0:00:12] 9.Bg3 is setting a new trend.} Ne8 {[%emt 0:00:15] D36: Queen's Gambit Declined: Exchange Variation: Main line (5 Bg5 c6 6 Qc2).} 10. Bg3 {[%emt 0:00:06]} Nd6 {[%emt 0:00:05]} 11. Nf3 {[%emt 0:00:22]} Be6 {[%emt 0:00:18] White is slightly better.} 12. O-O {[%emt 0:00:13]} Nd7 {[%emt 0:00:09]} 13. Ne5 {[%emt 0:00:20]} Nf6 {[%emt 0:00:06]} 14. f3 {[%emt 0:01:14]} Rc8 $146 {[%emt 0:06:59]} ({Predecessor:} 14... Qc8 15. Rae1 c5 16. Qf2 Bf5 17. Bh4 g5 18. Bg3 Bxd3 19. Nxd3 c4 20. Nb4 Qe6 {1-0 Caruana,F (2786)-Esipenko,A (2683) Titled Tuesday intern op 12th Sep Early blitz 2023 (7)}) 15. Rad1 {[%emt 0:00:11]} b5 {[%emt 0:07:22][%cal Bb7b5,Bb5b4][%mdl 32] Strong Square White (e5)} 16. Qe2 {[%emt 0:11:26] White is much more active.} ({Better is} 16. b3 $16) 16... Qa5 {[%emt 0:13:36]} 17. Be1 {[%emt 0:06:20][%cal Oc3d5] [#] Threatens to win with Nxd5!.} (17. b3 $5) 17... b4 {[%emt 0:06:01]} 18. Nb1 {[%emt 0:00:19]} Qb6 {[%emt 0:00:05]} ({Reject} 18... Qxa2 19. Bxb4 Nf5 20. Nc3 $16) 19. Nd2 {[%emt 0:02:54]} Bf5 {[%emt 0:06:16]} 20. Bxf5 {[%emt 0:06:24]} Nxf5 {[%emt 0:00:05]} 21. Qd3 {[%emt 0:01:25]} Nd6 {[%emt 0:00:55]} 22. Bh4 {[%emt 0:04:26]} Rfe8 {[%emt 0:13:16]} 23. Rc1 {[%emt 0:05:28]} Nb7 {[%emt 0:13:12]} 24. Bxf6 {[%emt 0:08:38]} Bxf6 {[%emt 0:00:05]} 25. Nd7 {[%emt 0:02:13]} Qd8 {[%emt 0:00:06]} 26. Nxf6+ {[%emt 0:01:05]} Qxf6 {[%emt 0:00:05]} 27. e4 {[%emt 0:04:03]} c5 {[%emt 0:05:19]} 28. e5 {[%emt 0:09:07]} (28. exd5 $11 Qxd4+ 29. Qxd4 cxd4 30. Nb3) 28... Qb6 $15 {[%emt 0:00:56] ...c4 is the strong threat.} 29. f4 $1 {[%emt 0:01:18]} cxd4 {[%emt 0:09:38]} ({Black should try} 29... c4 $17 30. Qe3 Nd6) 30. Nf3 {[%emt 0:01:42]} Nc5 {[%emt 0:01:14]} 31. Qxd4 {[%emt 0:00:43][%cal Of1d1]} Nd3 {[%emt 0:00:11]} 32. Qxb6 {[%emt 0:06:54]} axb6 {[%emt 0:00:56]} 33. Rcd1 {[%emt 0:00:05] The position is equal.} (33. Rxc8 Rxc8 34. Rd1 Nxf4 $19 (34... Nxb2 35. Rxd5 Ra8 36. f5 $11)) 33... Nxf4 {[%emt 0:03:00] ...Ne2+ poses a challenge} 34. g3 $1 {[%emt 0:04:04]} Ne6 {[%emt 0:06:43]} 35. Rxd5 {[%emt 0:00:26]} Rc2 {[%emt 0:00:47]} 36. Rf2 {[%emt 0:00:22]} Rc1+ {[%emt 0:00:30]} 37. Rf1 {[%emt 0:01:03]} Rc2 {[%emt 0:01:39] Weighted Error Value: White=0.15 (very precise) /Black=0.10 (very precise)   Mistake:       	White=2     	Black=1      Inaccurate:     	White=3     	Black=3      OK:         	White=13    	Black=17     Best:        	White=1     	---        Strong:       	White=2     	---} 1/2-1/2

[Event "SixDays Budapest March IM B 2025"]
[Site "Budapest"]
[Date "2025.03.27"]
[Round "6.4"]
[White "Banerjee, Supratit"]
[Black "Horvath, David"]
[Result "0-1"]
[Annotator "TA"]
[ECO "B12"]
[WhiteElo "2250"]
[BlackElo "2279"]
[PlyCount "78"]
[EventDate "2025.03.23"]
[EventType "tourn"]
[EventCountry "HUN"]
[SourceTitle "playchess.com"]
[Source "ChessBase"]
[SourceQuality "1"]
[TimeControl "5400+30"]

{[%evp 9,78,16,20,20,7,10,21,9,17,0,21,12,23,28,18,27,40,40,59,55,69,77,81,23,33,20,12,23,12,-29,-30,-40,-12,-145,-164,-278,-279,-666,-650,-888,-833,-785,-697,-710,-648,-710,-659,-722,-690,-708,-713,-754,-735,-717,-718,-928,-888,-1089,-1064,-1474,-1437,-1262,-1222,-29985,-29986,-29991,-29992,-29992,-29976,-29992,-29993]} 1. e4 {[%emt 0:00:04]} c6 {[%emt 0:00:04]} 2. d4 {[%emt 0:00:08]} d5 {[%emt 0:00:05]} 3. e5 {[%emt 0:00:06]} c5 {[%emt 0:00:06]} 4. Nf3 {[%emt 0:00:10]} cxd4 {[%emt 0:00:06]} 5. Nxd4 {[%emt 0:00:10]} Nc6 {[%emt 0:00:04]} 6. Nxc6 {[%emt 0:00:45] B12: Caro-Kann: Advance Variation.} bxc6 {[%emt 0:00:04]} 7. Bd3 {[%emt 0:00:10]} e6 {[%emt 0:00:08]} 8. O-O {[%emt 0:00:28] The position is equal.} Ne7 {[%emt 0:00:04]} 9. Re1 {[%emt 0:08:52]} a5 {[%emt 0:09:21]} 10. c3 {[%emt 0:00:33]} Ba6 {[%emt 0:05:51]} 11. Bc2 {[%emt 0:00:50]} Ng6 {[%emt 0:04:52]} 12. Nd2 {[%emt 0:10:53][%cal Bb1d2,Bd2f3,Bf3d4][%mdl 32]} Qb6 {[%emt 0:21:08]} 13. Nf3 {[%emt 0:17:47]} Bc5 {[%emt 0:03:30]} 14. Nd4 {[%emt 0:03:51]} O-O {[%emt 0:00:17]} 15. Re3 $146 {[%emt 0:04:21]} (15. h4 f6 16. exf6 Rxf6 17. Bg5 Rxf2 18. Kxf2 e5 19. Be3 exd4 20. Bxd4 Rf8+ 21. Kg1 {½-½ Karjakin,S (2750)-Dreev,A (2606) Moscow Region Group Cup rapid 2023 (11)}) 15... f5 {[%emt 0:28:16]} 16. Rb1 {[%emt 0:14:22]} (16. Nxe6 $1 $16 Bxe3 17. Bxe3 Qxb2 18. Rb1 Qxc3 19. Nxf8 Rxf8 20. Rb6) 16... Bxd4 $11 {[%emt 0:04:39]} 17. cxd4 {[%emt 0:00:59]} c5 {[%emt 0:00:07]} 18. Rb3 {[%emt 0:11:05]} Qa7 {[%emt 0:00:02]} 19. Rh3 {[%emt 0:10:11]} cxd4 {[%emt 0:09:03]} 20. Qh5 {[%emt 0:00:34]} Kf7 {[%emt 0:00:01]} 21. Bg5 {[%emt 0:01:48] [#] Black converts the advantage convincingly.} (21. Qxh7 $2 Rh8 $19 (21... Nxe5 $2 {perishes.} 22. Qh5+ Kg8 23. Bg5 $18)) (21. Rg3 $11 {remains equal.} Rh8 22. Ba4) 21... Qc7 $1 $17 {[%emt 0:04:31][%csl LRc2,LRe5]} 22. Rc1 {[%emt 0:10:23]} (22. Bd1 $142) 22... Qxe5 $19 {[%emt 0:02:49] White must now prevent ...Be2.} 23. Ba4 $2 {[%emt 0:01:23]} (23. Qd1) 23... Rac8 {[%emt 0:00:30] ( -> ...Rxc1+)} 24. Ra1 {[%emt 0:00:13]} Be2 {[%emt 0:01:55]} 25. Rf3 {[%emt 0:00:17]} Bxf3 {[%emt 0:00:54]} 26. Qxf3 {[%emt 0:00:08]} f4 {[%emt 0:00:37]} 27. h4 {[%emt 0:00:14]} h6 {[%emt 0:00:28]} 28. h5 {[%emt 0:00:03]} hxg5 {[%emt 0:00:32]} 29. hxg6+ {[%emt 0:00:05]} Kxg6 {[%emt 0:01:36]} 30. Bb5 {[%emt 0:00:31]} Kf6 {[%emt 0:01:27]} 31. Bd3 {[%emt 0:00:06]} g6 {[%emt 0:00:08]} 32. Kf1 {[%emt 0:00:16]} Qd6 {[%emt 0:00:36]} 33. Re1 {[%emt 0:00:29]} e5 {[%emt 0:00:05]} 34. Bb1 {[%emt 0:00:05]} e4 {[%emt 0:00:17]} 35. Qd1 {[%emt 0:00:04]} d3 {[%emt 0:00:16] ( -> ...Rh8)} 36. Qa4 {[%emt 0:00:06]} Qc5 {[%emt 0:00:52] Black mates.} 37. Rd1 {[%emt 0:00:27]} Rh8 {[%emt 0:00:45][%cal Rh8h1]} 38. Kg1 {[%emt 0:00:08] [#]} Rh1+ $3 {[%emt 0:01:20][%mdl 512]} 39. Kxh1 {[%emt 0:00:09]} Qxf2 {[%emt 0:00:01] Weighted Error Value: White=0.59/Black=0.09 (flawless)   Mistake:       	White=4     	---        Inaccurate:     	White=2     	---        OK:         	White=7     	Black=9      Best:        	White=1     	Black=2      Strong:       	---       	Black=1} 0-1

[Event "SixDays Budapest March IM B 2025"]
[Site "Budapest"]
[Date "2025.03.27"]
[Round "6.5"]
[White "Shah, Vishwa"]
[Black "Vuelban, Virgilio"]
[Result "1/2-1/2"]
[Annotator "TA"]
[ECO "B23"]
[WhiteElo "2172"]
[BlackElo "2244"]
[PlyCount "35"]
[EventDate "2025.03.23"]
[EventType "tourn"]
[EventCountry "HUN"]
[SourceTitle "playchess.com"]
[Source "ChessBase"]
[SourceQuality "1"]
[TimeControl "5400+30"]

{[%evp 14,22,4,2,18,16,30,26,28,22,61]} 1. e4 {[%emt 0:00:02]} c5 2. Nc3 {[%emt 0:00:23]} g6 {[%emt 0:08:06]} 3. d4 {[%emt 0:00:19]} cxd4 {[%emt 0:00:09]} 4. Qxd4 {[%emt 0:00:04]} Nf6 {[%emt 0:00:13]} 5. Nf3 {[%emt 0:00:24]} Nc6 {[%emt 0:01:10]} 6. Qa4 {[%emt 0:00:08]} d6 {[%emt 0:03:14]} 7. e5 {[%emt 0:00:39]} dxe5 {[%emt 0:01:42]} 8. Nxe5 {[%emt 0:00:08][%cal Of1c4]} Bd7 {[%emt 0:00:09] B27: Sicilian: 2 Nf3, unusual Black 2nd moves.} 9. Nxd7 {[%emt 0:00:09]} Qxd7 {[%emt 0:00:11]} 10. Be3 {[%emt 0:02:14]} Bg7 {[%emt 0:02:06]} 11. Be2 {[%emt 0:02:38] Wards off Ng4} Nd5 {[%emt 0:06:54] Black got outplayed after the opening.   Weighted Error Value: White=0.02 (flawless) /Black=0.09 (flawless)   Inaccurate:     	---       	Black=1      OK:         	White=1     	Black=1} 12. Nxd5 $146 Qxd5 13. O-O Qa5 14. Qxa5 Nxa5 15. c3 Be5 16. Rad1 Bd6 17. Rd5 Nc6 18. f4 {½-½ Riihimaki,P (1881)-Aalto,P (1887) Helsinki HSK op 2018 (1)} 1/2-1/2

[Event "SixDays Budapest March IM B 2025"]
[Site "Budapest"]
[Date "2025.03.28"]
[Round "7.1"]
[White "Vuelban, Virgilio"]
[Black "Chakrabarty, Reyaansh"]
[Result "0-1"]
[Annotator "RC"]
[ECO "B13"]
[WhiteElo "2244"]
[BlackElo "2181"]
[PlyCount "42"]
[EventDate "2025.03.23"]
[EventType "tourn"]
[EventCountry "HUN"]
[SourceTitle "playchess.com"]
[Source "ChessBase"]
[SourceQuality "1"]
[TimeControl "5400+30"]

1. e4 {[%emt 0:02:26]} c6 {[%emt 0:05:12]} 2. d4 {[%emt 0:03:10]} d5 3. exd5 {[%emt 0:00:12]} cxd5 {[%emt 0:00:15]} 4. c4 {[%emt 0:00:04]} Nf6 {[%emt 0:00:10]} 5. Nc3 {[%emt 0:00:07]} Nc6 {[%emt 0:00:02]} 6. Nf3 {[%emt 0:00:12]} Bg4 {[%emt 0:00:05]} 7. Be3 {[%emt 0:00:32]} e6 {[%emt 0:00:38]} 8. c5 {[%emt 0:00:13]} Be7 {[%emt 0:07:55]} 9. Bb5 {[%emt 0:00:14]} O-O {[%emt 0:00:19]} 10. O-O {[%emt 0:02:47]} Nd7 {[%emt 0:05:29]} 11. Be2 {[%emt 0:05:39]} Rc8 {[%emt 0:05:59]} 12. b4 {[%emt 0:02:20]} Bf6 {[%emt 0:03:12]} 13. h3 {[%emt 0:13:44]} Bxf3 {[%emt 0:07:23]} 14. Bxf3 {[%emt 0:00:25]} Nxb4 {[%emt 0:00:14]} 15. Rb1 {[%emt 0:08:58]} Nc6 {[%emt 0:00:40]} 16. Rxb7 {[%emt 0:11:58]} Nxc5 {[%emt 0:00:49]} 17. dxc5 {[%emt 0:00:46]} Bxc3 {[%emt 0:00:07]} 18. Qd3 {[%emt 0:00:36]} Qf6 {[%emt 0:12:58]} 19. Bd1 {[%emt 0:02:29]} d4 {[%emt 0:02:03]} 20. Bc1 {[%emt 0:00:42]} Qg6 {[%emt 0:12:51]} 21. Qc4 {[%emt 0:03:48]} Na5 {[%emt 0:00:03]} 0-1

[Event "SixDays Budapest March IM B 2025"]
[Site "Budapest"]
[Date "2025.03.28"]
[Round "7.2"]
[White "Horvath, David"]
[Black "Shah, Vishwa"]
[Result "1-0"]
[Annotator "RC"]
[ECO "A58"]
[WhiteElo "2279"]
[BlackElo "2172"]
[PlyCount "97"]
[EventDate "2025.03.23"]
[EventType "tourn"]
[EventCountry "HUN"]
[SourceTitle "playchess.com"]
[Source "ChessBase"]
[SourceQuality "1"]
[TimeControl "5400+30"]

1. d4 {[%emt 0:00:06]} Nf6 {[%emt 0:00:13]} 2. c4 {[%emt 0:00:33]} c5 {[%emt 0:00:24]} 3. d5 {[%emt 0:00:04]} b5 {[%emt 0:00:03]} 4. cxb5 {[%emt 0:00:04]} a6 {[%emt 0:00:03]} 5. bxa6 {[%emt 0:00:05]} g6 {[%emt 0:00:11]} 6. Nc3 {[%emt 0:00:05]} Bg7 {[%emt 0:00:06]} 7. e4 {[%emt 0:00:09]} O-O {[%emt 0:00:05]} 8. a4 {[%emt 0:00:04]} e6 {[%emt 0:00:42]} 9. Nf3 {[%emt 0:08:54]} exd5 {[%emt 0:00:16]} 10. e5 {[%emt 0:00:04]} Ng4 {[%emt 0:06:44]} 11. Qxd5 {[%emt 0:02:13]} Nc6 {[%emt 0:03:43]} 12. Bb5 {[%emt 0:15:54]} Bxa6 {[%emt 0:06:22]} 13. Bxa6 {[%emt 0:30:45]} Rxa6 {[%emt 0:00:05]} 14. Qc4 {[%emt 0:00:06]} Nb4 {[%emt 0:00:26]} 15. Nd5 {[%emt 0:00:06]} Nxe5 {[%emt 0:09:21]} 16. Nxe5 {[%emt 0:00:10]} Re6 {[%emt 0:03:13]} 17. Nxb4 {[%emt 0:00:47]} cxb4 {[%emt 0:09:44]} 18. O-O {[%emt 0:01:55]} Bxe5 {[%emt 0:00:13]} 19. Qxb4 {[%emt 0:15:11]} Qb8 {[%emt 0:05:25]} 20. Qxb8 {[%emt 0:01:10]} Rxb8 {[%emt 0:00:03]} 21. Rd1 {[%emt 0:00:18]} Bxb2 {[%emt 0:02:42]} 22. Rb1 {[%emt 0:00:06]} Be5 {[%emt 0:14:10]} 23. Rxb8+ {[%emt 0:00:58]} Bxb8 {[%emt 0:00:02]} 24. Be3 {[%emt 0:00:11]} Ra6 {[%emt 0:00:32]} 25. Ra1 {[%emt 0:10:04]} Be5 {[%emt 0:13:43]} 26. Ra2 {[%emt 0:00:08]} Kf8 {[%emt 0:01:18]} 27. f4 {[%emt 0:01:26]} Bc7 {[%emt 0:02:32]} 28. Kf2 {[%emt 0:00:05]} Ke7 {[%emt 0:03:45]} 29. Ke2 {[%emt 0:03:04]} Ke6 {[%emt 0:00:21]} 30. Kd3 {[%emt 0:00:10]} Kd5 {[%emt 0:00:42]} 31. Bd2 {[%emt 0:01:52]} Ba5 {[%emt 0:05:23]} 32. Bxa5 {[%emt 0:04:12]} Rxa5 {[%emt 0:00:01]} 33. g3 {[%emt 0:00:13]} f5 {[%emt 0:00:59]} 34. Ra1 {[%emt 0:01:11]} h6 {[%emt 0:03:15]} 35. h4 {[%emt 0:00:40]} h5 {[%emt 0:01:13]} 36. Ra2 {[%emt 0:00:33]} Kc5 {[%emt 0:02:11]} 37. Kc3 {[%emt 0:01:24]} d5 {[%emt 0:00:04]} 38. Kd3 {[%emt 0:01:31]} Kb4 {[%emt 0:00:31]} 39. Kd4 {[%emt 0:01:12]} Kb3 {[%emt 0:00:14]} 40. Re2 {[%emt 0:00:30]} Rxa4+ {[%emt 0:03:06]} 41. Kxd5 {[%emt 0:00:07]} Kc3 {[%emt 0:01:10]} 42. Re6 {[%emt 0:01:02]} Ra5+ {[%emt 0:04:46]} 43. Kd6 {[%emt 0:00:08]} Kd2 {[%emt 0:00:20]} 44. Ke7 {[%emt 0:00:16]} Ra3 {[%emt 0:00:14]} 45. Rxg6 {[%emt 0:00:11]} Ke2 {[%emt 0:00:11]} 46. Kf6 {[%emt 0:00:10]} Kf3 {[%emt 0:01:13]} 47. Kxf5 {[%emt 0:00:17]} Ra5+ {[%emt 0:00:27]} 48. Kf6 {[%emt 0:00:06]} Ke4 {[%emt 0:00:50]} 49. Kg7 {[%emt 0:00:15]} 1-0

[Event "SixDays Budapest March IM B 2025"]
[Site "Budapest"]
[Date "2025.03.28"]
[Round "7.3"]
[White "Kolimar, Kristof Pal"]
[Black "Banerjee, Supratit"]
[Result "1-0"]
[Annotator "RC"]
[ECO "E62"]
[WhiteElo "2284"]
[BlackElo "2250"]
[PlyCount "155"]
[EventDate "2025.03.23"]
[EventType "tourn"]
[EventCountry "HUN"]
[SourceTitle "playchess.com"]
[Source "ChessBase"]
[SourceQuality "1"]
[TimeControl "5400+30"]

1. d4 {[%emt 0:00:03]} Nf6 {[%emt 0:00:07]} 2. c4 {[%emt 0:00:05]} g6 {[%emt 0:00:15]} 3. g3 {[%emt 0:00:06]} Bg7 {[%emt 0:00:48]} 4. Bg2 {[%emt 0:00:05]} O-O {[%emt 0:00:14]} 5. Nc3 {[%emt 0:00:12]} d6 {[%emt 0:00:09]} 6. Nf3 {[%emt 0:00:04]} Nc6 {[%emt 0:01:06]} 7. O-O {[%emt 0:00:25]} e5 {[%emt 0:00:11]} 8. dxe5 {[%emt 0:00:51]} dxe5 {[%emt 0:00:11]} 9. Bg5 {[%emt 0:00:07]} h6 {[%emt 0:00:17]} 10. Qxd8 {[%emt 0:00:36]} Rxd8 {[%emt 0:00:09]} 11. Bxf6 {[%emt 0:00:04]} Bxf6 {[%emt 0:00:10]} 12. Nd5 {[%emt 0:00:02]} Kg7 {[%emt 0:00:20]} 13. Nxc7 {[%emt 0:00:05]} Rb8 {[%emt 0:00:05]} 14. e4 {[%emt 0:00:06]} Be7 {[%emt 0:00:51]} 15. Nd5 {[%emt 0:03:30]} Bc5 {[%emt 0:02:07]} 16. Rfd1 {[%emt 0:01:13]} a5 {[%emt 0:04:16]} 17. Rd2 {[%emt 0:02:59]} b6 {[%emt 0:11:56]} 18. Rad1 {[%emt 0:07:10]} Bg4 {[%emt 0:05:50]} 19. h3 {[%emt 0:06:09]} Be6 {[%emt 0:13:16]} 20. Ne1 {[%emt 0:03:57]} a4 {[%emt 0:07:33]} 21. a3 {[%emt 0:01:12]} Na5 {[%emt 0:03:10]} 22. Bf1 {[%emt 0:03:21]} Nb3 {[%emt 0:02:08]} 23. Rc2 {[%emt 0:09:07]} Nd4 {[%emt 0:07:22]} 24. Rcc1 {[%emt 0:06:17]} Nb3 {[%emt 0:03:27]} 25. Rb1 {[%emt 0:02:35]} Rbc8 {[%emt 0:07:23]} 26. Kg2 {[%emt 0:02:48]} Na5 {[%emt 0:03:15]} 27. Rbc1 {[%emt 0:08:54]} Nb3 {[%emt 0:01:31]} 28. Rc2 {[%emt 0:00:23]} Nd4 {[%emt 0:01:41]} 29. Rc3 {[%emt 0:00:40]} f5 {[%emt 0:02:19]} 30. f3 {[%emt 0:02:50]} fxe4 {[%emt 0:00:59]} 31. fxe4 {[%emt 0:00:06]} Rf8 {[%emt 0:01:02]} 32. Nd3 {[%emt 0:06:34]} Nc6 {[%emt 0:02:43]} 33. Nxc5 {[%emt 0:10:23]} bxc5 {[%emt 0:00:06]} 34. Nb6 {[%emt 0:02:59]} Rc7 {[%emt 0:01:34]} 35. Nxa4 {[%emt 0:04:53]} Nd4 {[%emt 0:01:24]} 36. Re3 {[%emt 0:05:19]} Rcf7 {[%emt 0:04:05]} 37. Nxc5 {[%emt 0:02:33]} Rf2+ {[%emt 0:00:09]} 38. Kg1 {[%emt 0:00:02]} Rxb2 {[%emt 0:00:36]} 39. Rxd4 {[%emt 0:06:01]} Rxf1+ {[%emt 0:00:25]} 40. Kxf1 {[%emt 0:00:02]} Bxh3+ {[%emt 0:00:09]} 41. Ke1 {[%emt 0:00:28]} exd4 {[%emt 0:00:05]} 42. Rd3 {[%emt 0:00:35]} Ra2 {[%emt 0:00:33]} 43. a4 {[%emt 0:01:07]} Bg4 {[%emt 0:00:17]} 44. Rxd4 {[%emt 0:00:47]} h5 {[%emt 0:00:20]} 45. Rd2 {[%emt 0:04:14]} Ra3 {[%emt 0:01:02]} 46. Rd3 {[%emt 0:00:06]} Ra2 {[%emt 0:00:17]} 47. Re3 {[%emt 0:00:11]} Kf6 {[%emt 0:00:12]} 48. e5+ {[%emt 0:00:20]} Ke7 {[%emt 0:00:07]} 49. e6 {[%emt 0:00:31]} Rc2 {[%emt 0:01:40]} 50. Re4 {[%emt 0:01:11]} Rc1+ {[%emt 0:00:28]} 51. Kd2 {[%emt 0:00:23]} Rg1 {[%emt 0:00:13]} 52. Re3 {[%emt 0:00:17]} g5 {[%emt 0:00:06]} 53. Re5 {[%emt 0:01:15]} h4 {[%emt 0:00:44]} 54. Rxg5 {[%emt 0:00:32]} h3 {[%emt 0:00:06]} 55. Rxg4 {[%emt 0:00:38]} h2 {[%emt 0:00:05]} 56. Rg7+ {[%emt 0:00:32]} Kf6 {[%emt 0:00:14]} 57. Rh7 {[%emt 0:00:04]} h1=Q {[%emt 0:00:05]} 58. Rxh1 {[%emt 0:00:04]} Rxh1 {[%emt 0:00:05]} 59. Kc3 {[%emt 0:00:38]} Ke7 {[%emt 0:00:04]} 60. a5 {[%emt 0:01:08]} Kd6 {[%emt 0:00:11]} 61. Kb4 {[%emt 0:00:34]} Rh5 {[%emt 0:00:19]} 62. Nd3 {[%emt 0:00:23]} Rh8 {[%emt 0:00:14]} 63. Nf4 {[%emt 0:00:32]} Rb8+ {[%emt 0:00:06]} 64. Kc3 {[%emt 0:00:37]} Ra8 {[%emt 0:00:12]} 65. Kb4 {[%emt 0:00:26]} Rb8+ {[%emt 0:00:04]} 66. Ka4 {[%emt 0:00:09]} Rb1 {[%emt 0:01:05]} 67. a6 {[%emt 0:00:57]} Ra1+ {[%emt 0:00:10]} 68. Kb5 {[%emt 0:00:04]} Rb1+ {[%emt 0:00:13]} 69. Ka5 {[%emt 0:00:12]} Kc5 {[%emt 0:00:03]} 70. Nd3+ {[%emt 0:00:18]} Kxc4 {[%emt 0:00:06]} 71. e7 {[%emt 0:00:06]} Rb5+ {[%emt 0:00:04]} 72. Ka4 {[%emt 0:00:15]} Rb8 {[%emt 0:00:10]} 73. Ne5+ {[%emt 0:00:08]} Kd5 {[%emt 0:00:24]} 74. Nd7 {[%emt 0:00:03]} Rh8 {[%emt 0:00:32]} 75. e8=Q {[%emt 0:00:07]} Rxe8 {[%emt 0:00:06]} 76. Nf6+ {[%emt 0:00:03]} Kc6 {[%emt 0:00:07]} 77. Nxe8 {[%emt 0:00:03]} Kb6 {[%emt 0:00:04]} 78. g4 1-0

[Event "SixDays Budapest March IM B 2025"]
[Site "Budapest"]
[Date "2025.03.28"]
[Round "7.4"]
[White "Pavan Karthikeya Varma Gunturi"]
[Black "Suder, Jakub"]
[Result "1/2-1/2"]
[Annotator "RC"]
[ECO "B28"]
[WhiteElo "2015"]
[BlackElo "2347"]
[PlyCount "64"]
[EventDate "2025.03.23"]
[EventType "tourn"]
[EventCountry "HUN"]
[SourceTitle "playchess.com"]
[Source "ChessBase"]
[SourceQuality "1"]
[TimeControl "5400+30"]

1. e4 {[%emt 0:00:03]} c5 {[%emt 0:00:05]} 2. Nf3 {[%emt 0:00:07]} a6 {[%emt 0:00:05]} 3. c4 {[%emt 0:00:22]} e6 {[%emt 0:00:10]} 4. Nc3 {[%emt 0:01:37]} Qc7 {[%emt 0:00:06]} 5. g3 {[%emt 0:05:05]} b6 {[%emt 0:03:12]} 6. Bg2 {[%emt 0:02:14]} Bb7 {[%emt 0:00:09]} 7. O-O {[%emt 0:01:28]} d6 {[%emt 0:01:17]} 8. Re1 {[%emt 0:01:24]} Nd7 {[%emt 0:03:10]} 9. b3 {[%emt 0:01:08]} Ne5 {[%emt 0:04:45]} 10. d4 {[%emt 0:05:20]} Nxf3+ {[%emt 0:03:07]} 11. Bxf3 {[%emt 0:02:46]} Ne7 {[%emt 0:04:35]} 12. dxc5 {[%emt 0:04:03]} bxc5 {[%emt 0:02:54]} 13. Bb2 {[%emt 0:04:52]} Nc6 {[%emt 0:04:03]} 14. Ne2 {[%emt 0:01:35]} e5 {[%emt 0:03:51]} 15. Nc3 {[%emt 0:02:01]} Nd4 {[%emt 0:01:00]} 16. Nd5 {[%emt 0:03:25]} Bxd5 {[%emt 0:00:31]} 17. cxd5 {[%emt 0:01:47]} Nxf3+ {[%emt 0:04:19]} 18. Qxf3 {[%emt 0:01:05]} Be7 {[%emt 0:00:13]} 19. Qc3 {[%emt 0:06:16]} O-O {[%emt 0:04:26]} 20. f4 {[%emt 0:04:20]} Bf6 {[%emt 0:00:26]} 21. f5 {[%emt 0:06:54]} Rab8 {[%emt 0:02:41]} 22. Qc4 {[%emt 0:02:36]} Rb5 {[%emt 0:03:14]} 23. Bc3 {[%emt 0:03:30]} Qa7 {[%emt 0:00:14]} 24. Bd2 {[%emt 0:04:19]} Rfb8 {[%emt 0:01:18]} 25. Rab1 {[%emt 0:02:45]} Qb7 {[%emt 0:01:58]} 26. Rb2 {[%emt 0:04:24]} h6 {[%emt 0:05:00]} 27. Reb1 {[%emt 0:02:34]} Bg5 {[%emt 0:03:53]} 28. a4 {[%emt 0:02:41]} Bxd2 {[%emt 0:00:08]} 29. axb5 {[%emt 0:00:07]} Be3+ {[%emt 0:00:24]} 30. Kg2 {[%emt 0:01:13]} axb5 {[%emt 0:00:06]} 31. Qe2 {[%emt 0:00:14]} Bd4 {[%emt 0:00:07]} 32. Ra2 {[%emt 0:00:15]} Ra8 {[%emt 0:03:30]} 1/2-1/2

[Event "SixDays Budapest March IM B 2025"]
[Site "Budapest"]
[Date "2025.03.28"]
[Round "7.5"]
[White "Katsanis, Vasileios Dim"]
[Black "Savanovic, Aleksandar"]
[Result "1-0"]
[Annotator "RC"]
[ECO "E25"]
[WhiteElo "2253"]
[BlackElo "2355"]
[PlyCount "37"]
[EventDate "2025.03.23"]
[EventType "tourn"]
[EventCountry "HUN"]
[SourceTitle "playchess.com"]
[Source "ChessBase"]
[SourceQuality "1"]
[TimeControl "5400+30"]

1. d4 {[%emt 0:00:38]} Nf6 {[%emt 0:00:09]} 2. c4 {[%emt 0:00:07]} e6 {[%emt 0:00:03]} 3. Nc3 {[%emt 0:00:04]} Bb4 {[%emt 0:00:20]} 4. f3 {[%emt 0:00:10]} d5 {[%emt 0:00:56]} 5. a3 {[%emt 0:00:07]} Bxc3+ {[%emt 0:00:04]} 6. bxc3 {[%emt 0:00:05]} c5 {[%emt 0:00:32]} 7. cxd5 {[%emt 0:00:08]} Nxd5 {[%emt 0:00:07]} 8. dxc5 {[%emt 0:00:19]} Qa5 {[%emt 0:00:26]} 9. e4 {[%emt 0:00:10]} Nf6 {[%emt 0:00:06]} 10. Be3 {[%emt 0:00:23]} O-O {[%emt 0:00:09]} 11. Qb3 {[%emt 0:00:38]} Qc7 {[%emt 0:00:42]} 12. Bb5 {[%emt 0:08:01]} Nfd7 {[%emt 0:05:17]} 13. Qb4 {[%emt 0:03:52]} Nc6 {[%emt 0:01:48]} 14. Bxc6 {[%emt 0:01:04]} Qxc6 {[%emt 0:02:30]} 15. Ne2 {[%emt 0:01:07]} a5 {[%emt 0:10:35]} 16. Qd4 {[%emt 0:04:13]} a4 {[%emt 0:13:00]} 17. Rd1 {[%emt 0:31:42]} Ra5 {[%emt 0:05:54]} 18. Qb4 {[%emt 0:00:37]} Rb5 {[%emt 0:06:06]} 19. Nd4 {[%emt 0:05:10]} 1-0